[Event "*** Titled Tuesday Blitz"]
[Site "Chess.com"]
[Date "2019.12.03"]
[Round "1"]
[White "Niklas2304"]
[Black "Vuk2000"]
[Result "0-1"]
[WhiteElo "2393"]
[BlackElo "2762"]
[TimeControl "180+2"]
[EndTime "13:06:23 PST"]
[Termination "Vuk2000 won by resignation"]

1. e4 {[%clk 0:02:59.7]} 1... d5 {[%clk 0:03:01]} 2. exd5 {[%clk 0:02:59.9]}
2... Qxd5 {[%clk 0:03:02.9]} 3. Nf3 {[%clk 0:03:01.2]} 3... Bg4 {[%clk
0:03:02.9]} 4. Be2 {[%clk 0:02:50.3]} 4... Nc6 {[%clk 0:03:03.9]} 5. h3 {[%clk
0:02:50.3]} 5... Bxf3 {[%clk 0:03:03.2]} 6. Bxf3 {[%clk 0:02:51]} 6... Qe6+
{[%clk 0:03:04.3]} 7. Qe2 {[%clk 0:02:50]} 7... Qxe2+ {[%clk 0:03:04.4]} 8. Bxe2
{[%clk 0:02:51.1]} 8... Nd4 {[%clk 0:03:05.7]} 9. Bd1 {[%clk 0:02:50.3]} 9... e5
{[%clk 0:03:06.7]} 10. O-O {[%clk 0:02:46]} 10... O-O-O {[%clk 0:03:07]} 11. Re1
{[%clk 0:02:43.7]} 11... f6 {[%clk 0:03:01.9]} 12. d3 {[%clk 0:02:34.2]} 12...
g6 {[%clk 0:03:02.4]} 13. c3 {[%clk 0:02:14.3]} 13... Nc6 {[%clk 0:02:43.7]} 14.
Bc2 {[%clk 0:02:13.2]} 14... Bh6 {[%clk 0:02:44.3]} 15. Na3 {[%clk 0:01:55.2]}
15... Bxc1 {[%clk 0:02:43.1]} 16. Raxc1 {[%clk 0:01:57.1]} 16... Nge7 {[%clk
0:02:34.9]} 17. b4 {[%clk 0:01:47]} 17... Nd5 {[%clk 0:02:31.3]} 18. b5 {[%clk
0:01:37]} 18... Nce7 {[%clk 0:02:26.2]} 19. Bb3 {[%clk 0:01:30.5]} 19... Nf4
{[%clk 0:02:24.8]} 20. d4 {[%clk 0:01:28.9]} 20... Nd3 {[%clk 0:02:24.1]} 21.
dxe5 {[%clk 0:01:29.6]} 21... fxe5 {[%clk 0:02:21.6]} 22. Bc4 {[%clk 0:01:18.4]}
22... Nxc1 {[%clk 0:02:17.3]} 23. Rxc1 {[%clk 0:01:18.2]} 23... Nd5 {[%clk
0:02:18.1]} 24. Re1 {[%clk 0:01:15.5]} 24... Nxc3 {[%clk 0:02:14.5]} 25. Rxe5
{[%clk 0:01:15.6]} 25... Rhe8 {[%clk 0:02:14.9]} 26. Rg5 {[%clk 0:01:03.3]}
26... Ne4 {[%clk 0:02:12.8]} 27. Rg4 {[%clk 0:00:52.4]} 27... Rd1+ {[%clk
0:02:08.8]} 28. Kh2 {[%clk 0:00:53.6]} 28... Nxf2 {[%clk 0:02:09.8]} 29. Rf4
{[%clk 0:00:54.9]} 29... Rh1+ {[%clk 0:02:07.9]} 30. Kg3 {[%clk 0:00:55.2]}
30... Ne4+ {[%clk 0:02:09.1]} 31. Kg4 {[%clk 0:00:54.1]} 31... h5+ {[%clk
0:02:08.8]} 32. Kf3 {[%clk 0:00:54.4]} 32... Nd2+ {[%clk 0:02:09.9]} 33. Kg3
{[%clk 0:00:54.2]} 33... Re3+ {[%clk 0:02:09.5]} 34. Kh4 {[%clk 0:00:53.4]}
34... Rxa3 {[%clk 0:02:07.7]} 35. Be6+ {[%clk 0:00:51.7]} 35... Kd8 {[%clk
0:02:09]} 36. Rd4+ {[%clk 0:00:50.4]} 36... Ke7 {[%clk 0:02:10.3]} 37. Bd5
{[%clk 0:00:45.9]} 37... Rd1 {[%clk 0:02:07.6]} 38. Rf4 {[%clk 0:00:37.4]} 0-1

[Event "*** Titled Tuesday Blitz"]
[Site "Chess.com"]
[Date "2019.12.03"]
[Round "1"]
[White "LuckIsMySkill"]
[Black "Chessmatus"]
[Result "0-1"]
[WhiteElo "2728"]
[BlackElo "2389"]
[TimeControl "180+2"]
[EndTime "13:06:23 PST"]
[Termination "Chessmatus won by resignation"]

1. f4 {[%clk 0:03:01.9]} 1... c5 {[%clk 0:02:59.3]} 2. Nf3 {[%clk 0:03:02.6]}
2... Nc6 {[%clk 0:02:58.2]} 3. b3 {[%clk 0:03:03.7]} 3... Nf6 {[%clk 0:02:56.5]}
4. Bb2 {[%clk 0:03:04.4]} 4... g6 {[%clk 0:02:57.8]} 5. e3 {[%clk 0:03:05.5]}
5... Bg7 {[%clk 0:02:59]} 6. Bb5 {[%clk 0:03:04.5]} 6... O-O {[%clk 0:02:56.6]}
7. O-O {[%clk 0:03:05.5]} 7... a6 {[%clk 0:02:55.3]} 8. Bxc6 {[%clk 0:03:06.3]}
8... bxc6 {[%clk 0:02:55.3]} 9. a4 {[%clk 0:03:05.8]} 9... d6 {[%clk 0:02:45.6]}
10. Qe2 {[%clk 0:03:04.8]} 10... a5 {[%clk 0:02:45.5]} 11. d3 {[%clk 0:03:05.6]}
11... Rb8 {[%clk 0:02:27]} 12. Nbd2 {[%clk 0:03:05.9]} 12... Ba6 {[%clk
0:02:24.1]} 13. g3 {[%clk 0:03:04.4]} 13... Nd5 {[%clk 0:02:22.8]} 14. Bxg7
{[%clk 0:03:04.3]} 14... Kxg7 {[%clk 0:02:24.7]} 15. e4 {[%clk 0:03:00.9]} 15...
Nb4 {[%clk 0:02:22.1]} 16. Nc4 {[%clk 0:03:00.5]} 16... Bxc4 {[%clk 0:02:21.9]}
17. bxc4 {[%clk 0:03:00.6]} 17... d5 {[%clk 0:01:54.7]} 18. c3 {[%clk
0:02:27.2]} 18... dxe4 {[%clk 0:01:52.7]} 19. dxe4 {[%clk 0:02:27.1]} 19... Qd3
{[%clk 0:01:51.9]} 20. Kf2 {[%clk 0:02:23.1]} 20... Qxc3 {[%clk 0:01:38.3]} 21.
Rfd1 {[%clk 0:02:18.8]} 21... Rbd8 {[%clk 0:01:36.3]} 22. Ne1 {[%clk 0:02:13.1]}
22... Rd4 {[%clk 0:01:23.3]} 23. Rac1 {[%clk 0:02:11]} 23... Qb3 {[%clk
0:01:24]} 24. Nf3 {[%clk 0:02:10.1]} 24... Nd3+ {[%clk 0:01:20.6]} 25. Kg2
{[%clk 0:02:05.4]} 25... Nxc1 {[%clk 0:01:19.5]} 26. Rxc1 {[%clk 0:02:07.3]}
26... Rd6 {[%clk 0:01:14.9]} 27. Kh3 {[%clk 0:02:04.6]} 27... Rfd8 {[%clk
0:01:14.4]} 28. f5 {[%clk 0:02:02.1]} 28... Rd1 {[%clk 0:01:05.3]} 29. Rxd1
{[%clk 0:01:59.7]} 29... Qxd1 {[%clk 0:01:06.1]} 30. Qb2+ {[%clk 0:01:58.8]}
30... f6 {[%clk 0:01:07]} 31. Qb7 {[%clk 0:01:57.8]} 31... Qd7 {[%clk
0:00:57.7]} 32. Qb6 {[%clk 0:01:51.5]} 32... gxf5 {[%clk 0:00:58.6]} 33. e5
{[%clk 0:01:44.9]} 33... f4+ {[%clk 0:00:55.2]} 34. Kh4 {[%clk 0:01:45.7]} 34...
fxe5 {[%clk 0:00:54.8]} 35. Nxe5 {[%clk 0:01:45.7]} 35... Qd6 {[%clk 0:00:49.7]}
36. gxf4 {[%clk 0:01:44.2]} 36... Qf6+ {[%clk 0:00:49.9]} 37. Kg3 {[%clk
0:01:44.7]} 37... Rd4 {[%clk 0:00:50]} 0-1

[Event "*** Titled Tuesday Blitz"]
[Site "Chess.com"]
[Date "2019.12.03"]
[Round "1"]
[White "xamax2000"]
[Black "brendan174"]
[Result "1-0"]
[WhiteElo "2567"]
[BlackElo "2132"]
[TimeControl "180+2"]
[EndTime "13:06:41 PST"]
[Termination "xamax2000 won by resignation"]

1. e4 {[%clk 0:02:59.8]} 1... e5 {[%clk 0:03:01.1]} 2. Nf3 {[%clk 0:03:00.2]}
2... Nc6 {[%clk 0:03:02.2]} 3. Bb5 {[%clk 0:03:01.2]} 3... g6 {[%clk 0:03:02.8]}
4. c3 {[%clk 0:03:00]} 4... Nge7 {[%clk 0:03:03.7]} 5. d4 {[%clk 0:02:59.5]}
5... exd4 {[%clk 0:03:04.8]} 6. cxd4 {[%clk 0:03:01.4]} 6... d5 {[%clk
0:03:06.1]} 7. exd5 {[%clk 0:03:02.2]} 7... Nxd5 {[%clk 0:03:07.4]} 8. O-O
{[%clk 0:03:02.4]} 8... Bg7 {[%clk 0:03:08.8]} 9. Bg5 {[%clk 0:03:03.8]} 9...
Qd6 {[%clk 0:03:05.7]} 10. Re1+ {[%clk 0:03:05]} 10... Be6 {[%clk 0:03:06.6]}
11. Nbd2 {[%clk 0:03:06.4]} 11... O-O {[%clk 0:03:07.8]} 12. Ne4 {[%clk
0:03:07.6]} 12... Qb4 {[%clk 0:03:09]} 13. Bxc6 {[%clk 0:03:09.2]} 13... bxc6
{[%clk 0:03:10.9]} 14. Qc1 {[%clk 0:03:07.7]} 14... Rfe8 {[%clk 0:03:11.9]} 15.
a3 {[%clk 0:03:08.4]} 15... Qb6 {[%clk 0:03:07.3]} 16. Nc5 {[%clk 0:03:06.5]}
16... Bf5 {[%clk 0:02:55.2]} 17. Bd2 {[%clk 0:02:50.3]} 17... Rad8 {[%clk
0:02:53.6]} 18. Ne5 {[%clk 0:02:44.5]} 18... f6 {[%clk 0:02:43.8]} 19. Nc4
{[%clk 0:02:43]} 19... Qb8 {[%clk 0:02:29.6]} 20. b4 {[%clk 0:02:31.5]} 20...
Nb6 {[%clk 0:02:24.6]} 21. Na5 {[%clk 0:02:30.7]} 21... Qa8 {[%clk 0:01:50.9]}
22. Rxe8+ {[%clk 0:02:16.7]} 22... Rxe8 {[%clk 0:01:52]} 23. Bf4 {[%clk
0:02:18.6]} 23... Nd5 {[%clk 0:01:48.5]} 24. Bg3 {[%clk 0:02:19.1]} 24... h5
{[%clk 0:01:02.6]} 25. h3 {[%clk 0:02:19.7]} 25... Kh7 {[%clk 0:01:03.7]} 26.
Qd1 {[%clk 0:02:12.7]} 26... Bh6 {[%clk 0:00:57.7]} 27. Qa4 {[%clk 0:02:06.1]}
27... Nc3 {[%clk 0:00:49.2]} 28. Qxc6 {[%clk 0:02:06.1]} 28... Qxc6 {[%clk
0:00:48.1]} 29. Nxc6 {[%clk 0:02:08]} 29... Ne2+ {[%clk 0:00:49.7]} 30. Kh2
{[%clk 0:02:08.4]} 30... Nxg3 {[%clk 0:00:50.9]} 31. Kxg3 {[%clk 0:02:05.9]}
31... Re2 {[%clk 0:00:51.5]} 32. Kf3 {[%clk 0:02:05.1]} 32... Re8 {[%clk
0:00:41.9]} 33. g4 {[%clk 0:02:04]} 33... hxg4+ {[%clk 0:00:36.5]} 34. hxg4
{[%clk 0:02:05.9]} 34... Bc8 {[%clk 0:00:36.5]} 35. d5 {[%clk 0:02:03.4]} 35...
Bf8 {[%clk 0:00:25.1]} 36. Nxa7 {[%clk 0:02:01.2]} 36... Rd8 {[%clk 0:00:14.5]}
37. Rd1 {[%clk 0:02:00.6]} 1-0

[Event "*** Titled Tuesday Blitz"]
[Site "Chess.com"]
[Date "2019.12.03"]
[Round "1"]
[White "LawrenceTrent"]
[Black "Nancy11111"]
[Result "0-1"]
[WhiteElo "2659"]
[BlackElo "2344"]
[TimeControl "180+2"]
[EndTime "13:06:44 PST"]
[Termination "Nancy11111 won by checkmate"]

1. d4 {[%clk 0:03:01.9]} 1... d5 {[%clk 0:03:00.1]} 2. Bg5 {[%clk 0:03:02.3]}
2... h6 {[%clk 0:02:54]} 3. Bh4 {[%clk 0:03:02.7]} 3... Nd7 {[%clk 0:02:51.8]}
4. e3 {[%clk 0:03:02.1]} 4... Ngf6 {[%clk 0:02:51.9]} 5. f4 {[%clk 0:03:02.7]}
5... Ne4 {[%clk 0:02:48.9]} 6. Nf3 {[%clk 0:03:03]} 6... Ndf6 {[%clk 0:02:49.5]}
7. Nbd2 {[%clk 0:03:02.7]} 7... Bg4 {[%clk 0:02:49.6]} 8. h3 {[%clk 0:03:02]}
8... Nxd2 {[%clk 0:02:44]} 9. Qxd2 {[%clk 0:02:59.8]} 9... Bxf3 {[%clk
0:02:43.5]} 10. gxf3 {[%clk 0:03:00.5]} 10... Qd7 {[%clk 0:02:43.9]} 11. c4
{[%clk 0:02:54.7]} 11... dxc4 {[%clk 0:02:33.3]} 12. Bxc4 {[%clk 0:02:52.2]}
12... e6 {[%clk 0:02:34.4]} 13. Qe2 {[%clk 0:02:47.6]} 13... a6 {[%clk
0:02:32.4]} 14. O-O-O {[%clk 0:02:46.4]} 14... b5 {[%clk 0:02:20]} 15. Bb3
{[%clk 0:02:40.1]} 15... a5 {[%clk 0:02:17]} 16. Bxf6 {[%clk 0:01:48.8]} 16...
gxf6 {[%clk 0:02:16]} 17. d5 {[%clk 0:01:50]} 17... e5 {[%clk 0:02:11.2]} 18.
fxe5 {[%clk 0:01:47.2]} 18... fxe5 {[%clk 0:02:10.9]} 19. Kb1 {[%clk 0:01:42.7]}
19... a4 {[%clk 0:02:09.5]} 20. Bc2 {[%clk 0:01:44.1]} 20... a3 {[%clk
0:02:06.7]} 21. Be4 {[%clk 0:01:33.8]} 21... Bd6 {[%clk 0:02:00.4]} 22. Qc2
{[%clk 0:01:34.6]} 22... Ra6 {[%clk 0:01:45.5]} 23. b3 {[%clk 0:01:34.1]} 23...
Rf8 {[%clk 0:01:24.6]} 24. Bf5 {[%clk 0:01:34.3]} 24... Qe7 {[%clk 0:01:21.5]}
25. h4 {[%clk 0:01:33.5]} 25... Qf6 {[%clk 0:01:15]} 26. Bd3 {[%clk 0:01:18.4]}
26... Rb6 {[%clk 0:01:01.2]} 27. Bxb5+ {[%clk 0:01:19]} 27... Ke7 {[%clk
0:01:01]} 28. Bc4 {[%clk 0:01:15.1]} 28... Qxf3 {[%clk 0:00:56.1]} 29. Rhf1
{[%clk 0:01:10.8]} 29... Qxe3 {[%clk 0:00:56.8]} 30. Qf5 {[%clk 0:01:10.9]}
30... Qc3 {[%clk 0:00:46.8]} 31. Qf3 {[%clk 0:01:00.3]} 31... Qb2# {[%clk
0:00:44.3]} 0-1

[Event "*** Titled Tuesday Blitz"]
[Site "Chess.com"]
[Date "2019.12.03"]
[Round "1"]
[White "ShahMatKanal"]
[Black "sergoy"]
[Result "0-1"]
[WhiteElo "2481"]
[BlackElo "2907"]
[TimeControl "180+2"]
[EndTime "13:06:46 PST"]
[Termination "sergoy won by resignation"]

1. d4 {[%clk 0:03:01.9]} 1... Nf6 {[%clk 0:02:59.6]} 2. Bf4 {[%clk 0:03:02.2]}
2... g6 {[%clk 0:02:59.8]} 3. e3 {[%clk 0:03:02.5]} 3... Bg7 {[%clk 0:03:00.9]}
4. Nf3 {[%clk 0:03:04]} 4... O-O {[%clk 0:03:02]} 5. h3 {[%clk 0:03:05.4]} 5...
d6 {[%clk 0:03:03.2]} 6. Be2 {[%clk 0:03:06.3]} 6... Nfd7 {[%clk 0:03:02]} 7.
O-O {[%clk 0:03:06.8]} 7... e5 {[%clk 0:03:03.2]} 8. Bh2 {[%clk 0:03:08.3]} 8...
Nc6 {[%clk 0:03:04.1]} 9. c3 {[%clk 0:03:04.6]} 9... Qe7 {[%clk 0:02:57.5]} 10.
a4 {[%clk 0:02:58.6]} 10... e4 {[%clk 0:02:58]} 11. Nfd2 {[%clk 0:02:56.6]}
11... f5 {[%clk 0:02:58]} 12. a5 {[%clk 0:02:53.5]} 12... a6 {[%clk 0:02:58.1]}
13. b4 {[%clk 0:02:39.4]} 13... Nf6 {[%clk 0:02:58.7]} 14. Qb3+ {[%clk
0:02:36.1]} 14... Kh8 {[%clk 0:02:58.6]} 15. Na3 {[%clk 0:02:31]} 15... g5
{[%clk 0:02:57.9]} 16. c4 {[%clk 0:02:22.4]} 16... f4 {[%clk 0:02:34.9]} 17. Nc2
{[%clk 0:02:12.9]} 17... f3 {[%clk 0:02:34.6]} 18. gxf3 {[%clk 0:02:08.2]} 18...
Bxh3 {[%clk 0:02:35]} 19. fxe4 {[%clk 0:01:50.4]} 19... Bxf1 {[%clk 0:02:24.7]}
20. Bxf1 {[%clk 0:01:48.9]} 20... Nxe4 {[%clk 0:02:25.5]} 21. Nxe4 {[%clk
0:01:49.2]} 21... Qxe4 {[%clk 0:02:27.4]} 22. Bg2 {[%clk 0:01:50]} 22... Qf5
{[%clk 0:02:24.6]} 23. Rf1 {[%clk 0:01:45.3]} 23... h5 {[%clk 0:02:21.5]} 24. d5
{[%clk 0:01:40]} 24... Ne7 {[%clk 0:02:18.1]} 25. Nd4 {[%clk 0:01:36.3]} 25...
Bxd4 {[%clk 0:02:18.1]} 26. exd4 {[%clk 0:01:37.4]} 26... Ng6 {[%clk 0:02:19.3]}
27. c5 {[%clk 0:01:17.1]} 27... Nf4 {[%clk 0:02:17.1]} 28. Bxf4 {[%clk
0:01:16.7]} 28... Qxf4 {[%clk 0:02:17.4]} 29. c6 {[%clk 0:01:15]} 29... bxc6
{[%clk 0:02:10.9]} 30. dxc6 {[%clk 0:01:16.1]} 30... Rae8 {[%clk 0:02:06.2]} 31.
b5 {[%clk 0:01:12.7]} 31... axb5 {[%clk 0:01:59.5]} 32. Qxb5 {[%clk 0:01:13.3]}
32... Re1 {[%clk 0:01:43]} 33. Rxe1 {[%clk 0:01:00.4]} 33... Qxf2+ {[%clk
0:01:43.7]} 34. Kh2 {[%clk 0:01:02.2]} 34... Qh4+ {[%clk 0:01:44.8]} 35. Kg1
{[%clk 0:00:49.7]} 35... Qxe1+ {[%clk 0:01:44.8]} 36. Kh2 {[%clk 0:00:49.7]}
36... Qh4+ {[%clk 0:01:45.1]} 37. Kg1 {[%clk 0:00:50.5]} 37... Qxd4+ {[%clk
0:01:46]} 38. Kh1 {[%clk 0:00:49]} 38... Qh4+ {[%clk 0:01:37.7]} 39. Kg1 {[%clk
0:00:49.8]} 39... Qe1+ {[%clk 0:01:37.7]} 40. Kh2 {[%clk 0:00:51]} 40... Qe5+
{[%clk 0:01:28.7]} 0-1

[Event "*** Titled Tuesday Blitz"]
[Site "Chess.com"]
[Date "2019.12.03"]
[Round "1"]
[White "kuli4ik"]
[Black "BigAl"]
[Result "1-0"]
[WhiteElo "2810"]
[BlackElo "2443"]
[TimeControl "180+2"]
[EndTime "13:07:05 PST"]
[Termination "kuli4ik won by checkmate"]

1. Nf3 {[%clk 0:01:04.2]} 1... Nf6 {[%clk 0:03:00.4]} 2. g3 {[%clk 0:01:04.9]}
2... g6 {[%clk 0:03:01.3]} 3. b3 {[%clk 0:01:04.8]} 3... Bg7 {[%clk 0:03:03.2]}
4. Bb2 {[%clk 0:01:06.3]} 4... d5 {[%clk 0:03:03.9]} 5. c4 {[%clk 0:01:06]} 5...
c6 {[%clk 0:03:04.3]} 6. Bg2 {[%clk 0:01:06.9]} 6... O-O {[%clk 0:03:05]} 7. O-O
{[%clk 0:01:08.3]} 7... a5 {[%clk 0:03:06.6]} 8. Nc3 {[%clk 0:01:08.3]} 8... Na6
{[%clk 0:02:51.8]} 9. cxd5 {[%clk 0:00:45.2]} 9... cxd5 {[%clk 0:02:48.3]} 10.
Rc1 {[%clk 0:00:46]} 10... d4 {[%clk 0:02:43.4]} 11. Nb5 {[%clk 0:00:45.9]}
11... d3 {[%clk 0:02:44.6]} 12. e3 {[%clk 0:00:45.4]} 12... Be6 {[%clk
0:02:32.9]} 13. Nc3 {[%clk 0:00:37.5]} 13... Rc8 {[%clk 0:02:29.6]} 14. Nd4
{[%clk 0:00:37.8]} 14... Bg4 {[%clk 0:02:22.6]} 15. f3 {[%clk 0:00:38.3]} 15...
Bd7 {[%clk 0:02:23.3]} 16. f4 {[%clk 0:00:39.2]} 16... Nc5 {[%clk 0:02:20.1]}
17. h3 {[%clk 0:00:35.1]} 17... Qb6 {[%clk 0:02:15.9]} 18. Kh2 {[%clk
0:00:35.2]} 18... h5 {[%clk 0:02:10.8]} 19. Ba3 {[%clk 0:00:26.8]} 19... Rfe8
{[%clk 0:02:05.2]} 20. Nf3 {[%clk 0:00:25.9]} 20... a4 {[%clk 0:01:51.4]} 21.
bxa4 {[%clk 0:00:25.6]} 21... Qa5 {[%clk 0:01:46.3]} 22. Ne5 {[%clk 0:00:20.9]}
22... Bxa4 {[%clk 0:01:43.4]} 23. Nxa4 {[%clk 0:00:21.3]} 23... Nxa4 {[%clk
0:01:44.2]} 24. Qb3 {[%clk 0:00:22.1]} 24... Rxc1 {[%clk 0:01:39.8]} 25. Qxf7+
{[%clk 0:00:21.5]} 25... Kh7 {[%clk 0:01:39.9]} 26. Qxg6+ {[%clk 0:00:21.7]}
26... Kh8 {[%clk 0:01:40.7]} 27. Rxc1 {[%clk 0:00:21.4]} 27... Rf8 {[%clk
0:01:31]} 28. Qxd3 {[%clk 0:00:21.4]} 28... Kg8 {[%clk 0:01:26.5]} 29. Bxe7
{[%clk 0:00:20.8]} 29... Nb2 {[%clk 0:01:25.4]} 30. Qb3+ {[%clk 0:00:20.6]}
30... Kh7 {[%clk 0:01:24.8]} 31. Bxf8 {[%clk 0:00:21.6]} 31... Qxd2 {[%clk
0:01:23.4]} 32. Rc2 {[%clk 0:00:19.1]} 32... Qe1 {[%clk 0:01:21.2]} 33. Bxg7
{[%clk 0:00:19.6]} 33... h4 {[%clk 0:01:22.9]} 34. gxh4 {[%clk 0:00:19]} 34...
Nh5 {[%clk 0:01:23.9]} 35. Be4+ {[%clk 0:00:16.1]} 35... Kxg7 {[%clk 0:01:22.9]}
36. Qf7+ {[%clk 0:00:16.6]} 36... Kh6 {[%clk 0:01:24]} 37. Qg6# {[%clk
0:00:17.4]} 1-0

[Event "*** Titled Tuesday Blitz"]
[Site "Chess.com"]
[Date "2019.12.03"]
[Round "1"]
[White "coalescenet"]
[Black "Elshan1985"]
[Result "0-1"]
[WhiteElo "2359"]
[BlackElo "2727"]
[TimeControl "180+2"]
[EndTime "13:07:09 PST"]
[Termination "Elshan1985 won by resignation"]

1. d4 {[%clk 0:03:01.1]} 1... g6 {[%clk 0:02:59.5]} 2. c4 {[%clk 0:02:58.8]}
2... Bg7 {[%clk 0:03:00.2]} 3. Nf3 {[%clk 0:03:00.4]} 3... c5 {[%clk 0:02:59.9]}
4. d5 {[%clk 0:03:00.9]} 4... b5 {[%clk 0:03:00.7]} 5. cxb5 {[%clk 0:03:01.5]}
5... a6 {[%clk 0:03:01.8]} 6. bxa6 {[%clk 0:03:02.8]} 6... Nf6 {[%clk
0:03:02.2]} 7. Nc3 {[%clk 0:03:04]} 7... O-O {[%clk 0:03:02.6]} 8. e4 {[%clk
0:03:05.4]} 8... d6 {[%clk 0:03:04]} 9. Be2 {[%clk 0:03:06.6]} 9... Bxa6 {[%clk
0:03:04]} 10. O-O {[%clk 0:03:07.8]} 10... Bxe2 {[%clk 0:03:04.7]} 11. Qxe2
{[%clk 0:03:08.3]} 11... Nbd7 {[%clk 0:03:05.5]} 12. a4 {[%clk 0:03:09.6]} 12...
Qa5 {[%clk 0:03:02.2]} 13. Ra3 {[%clk 0:03:07.5]} 13... Rfb8 {[%clk 0:03:02.3]}
14. Nb5 {[%clk 0:03:05.1]} 14... Qb4 {[%clk 0:02:56.6]} 15. Bg5 {[%clk
0:02:56.4]} 15... Rxa4 {[%clk 0:02:52.2]} 16. Rxa4 {[%clk 0:02:40.1]} 16... Qxa4
{[%clk 0:02:52.3]} 17. Nc3 {[%clk 0:02:41.6]} 17... Qb3 {[%clk 0:02:52.2]} 18.
e5 {[%clk 0:02:40.7]} 18... Nxd5 {[%clk 0:02:39.6]} 19. exd6 {[%clk 0:02:30.2]}
19... exd6 {[%clk 0:02:38.7]} 20. Nxd5 {[%clk 0:02:20.8]} 20... Qxd5 {[%clk
0:02:39.2]} 21. Rd1 {[%clk 0:02:22.1]} 21... Qc6 {[%clk 0:02:35.3]} 22. h4
{[%clk 0:02:10.4]} 22... h6 {[%clk 0:02:31.6]} 23. Bc1 {[%clk 0:02:07.4]} 23...
d5 {[%clk 0:02:32]} 24. Bf4 {[%clk 0:02:04.1]} 24... Ra8 {[%clk 0:02:13.1]} 25.
Qd2 {[%clk 0:01:59.5]} 25... d4 {[%clk 0:01:35.7]} 26. Bxh6 {[%clk 0:01:56.4]}
26... Ne5 {[%clk 0:01:36.7]} 27. Nxe5 {[%clk 0:01:40]} 27... Bxe5 {[%clk
0:01:36.5]} 28. h5 {[%clk 0:01:38.3]} 28... Re8 {[%clk 0:01:26.6]} 29. Re1
{[%clk 0:01:29.8]} 29... Bg7 {[%clk 0:01:14.4]} 30. Rxe8+ {[%clk 0:01:27.7]}
30... Qxe8 {[%clk 0:01:16.3]} 31. Bxg7 {[%clk 0:01:25.3]} 31... Kxg7 {[%clk
0:01:18.2]} 32. Qg5 {[%clk 0:01:22.3]} 32... Qe1+ {[%clk 0:01:13.9]} 33. Kh2
{[%clk 0:01:23.6]} 33... Qxf2 {[%clk 0:01:14.8]} 34. Qxc5 {[%clk 0:01:21.1]}
34... Qf4+ {[%clk 0:01:03.7]} 35. Kh1 {[%clk 0:01:15.7]} 35... gxh5 {[%clk
0:01:04.8]} 36. Qxh5 {[%clk 0:01:13.8]} 36... d3 {[%clk 0:01:04.3]} 37. Qh3
{[%clk 0:01:05.7]} 37... d2 {[%clk 0:00:57.7]} 38. Qc3+ {[%clk 0:01:02]} 38...
f6 {[%clk 0:00:58.9]} 39. Qc2 {[%clk 0:00:57]} 39... Qh4+ {[%clk 0:00:57.3]} 40.
Kg1 {[%clk 0:00:57.5]} 40... Qd4+ {[%clk 0:00:58]} 41. Kh2 {[%clk 0:00:57.2]}
41... d1=Q {[%clk 0:00:58.7]} 42. Qc7+ {[%clk 0:00:57.1]} 42... Qd7 {[%clk
0:00:59.8]} 43. Qg3+ {[%clk 0:00:58.5]} 43... Q1g4 {[%clk 0:01:01.1]} 0-1

[Event "*** Titled Tuesday Blitz"]
[Site "Chess.com"]
[Date "2019.12.03"]
[Round "1"]
[White "ehrenfeld"]
[Black "HouseOfDurin"]
[Result "1-0"]
[WhiteElo "2550"]
[BlackElo "2109"]
[TimeControl "180+2"]
[EndTime "13:07:27 PST"]
[Termination "ehrenfeld won by resignation"]

1. e4 {[%clk 0:03:01.9]} 1... c5 {[%clk 0:02:58.4]} 2. Nf3 {[%clk 0:03:02.1]}
2... Nc6 {[%clk 0:02:59.8]} 3. Bb5 {[%clk 0:03:02.5]} 3... g6 {[%clk 0:02:59.5]}
4. Bxc6 {[%clk 0:03:03.3]} 4... bxc6 {[%clk 0:03:01.4]} 5. O-O {[%clk
0:03:03.8]} 5... Bg7 {[%clk 0:03:02.6]} 6. Re1 {[%clk 0:03:04.7]} 6... e5 {[%clk
0:03:03.3]} 7. c3 {[%clk 0:03:05]} 7... Ne7 {[%clk 0:03:04.7]} 8. d4 {[%clk
0:03:05.9]} 8... cxd4 {[%clk 0:03:05.1]} 9. cxd4 {[%clk 0:03:07]} 9... exd4
{[%clk 0:03:00.8]} 10. Nxd4 {[%clk 0:03:07.7]} 10... O-O {[%clk 0:03:00.5]} 11.
Nc3 {[%clk 0:03:08.3]} 11... d5 {[%clk 0:02:57.3]} 12. Bg5 {[%clk 0:02:34.4]}
12... f6 {[%clk 0:02:13.5]} 13. Bf4 {[%clk 0:02:34.5]} 13... c5 {[%clk
0:01:06.6]} 14. Nb3 {[%clk 0:02:18.8]} 14... d4 {[%clk 0:00:33.5]} 15. Na4
{[%clk 0:02:18.4]} 15... c4 {[%clk 0:00:25]} 16. Nxd4 {[%clk 0:02:17.7]} 16...
f5 {[%clk 0:00:25.9]} 17. e5 {[%clk 0:02:16.3]} 17... Qa5 {[%clk 0:00:23.2]} 18.
Nc3 {[%clk 0:01:41.4]} 18... Bb7 {[%clk 0:00:21.2]} 19. Qe2 {[%clk 0:01:39.2]}
19... Nd5 {[%clk 0:00:20.1]} 20. Nxd5 {[%clk 0:01:31.3]} 20... Qxd5 {[%clk
0:00:22]} 21. Nf3 {[%clk 0:01:30.9]} 21... Rfe8 {[%clk 0:00:19.9]} 22. Rad1
{[%clk 0:01:30.8]} 22... Qe4 {[%clk 0:00:20.8]} 23. Qd2 {[%clk 0:01:30.1]} 23...
Qc6 {[%clk 0:00:17.9]} 24. h4 {[%clk 0:01:27.2]} 24... Rad8 {[%clk 0:00:17.6]}
25. Qxd8 {[%clk 0:01:24.1]} 25... Rxd8 {[%clk 0:00:19.5]} 26. Rxd8+ {[%clk
0:01:24.9]} 26... Kf7 {[%clk 0:00:19.1]} 27. Red1 {[%clk 0:01:25.9]} 27... Bc8
{[%clk 0:00:19.1]} 28. R1d6 {[%clk 0:01:19.7]} 28... Qb7 {[%clk 0:00:18.6]} 29.
e6+ {[%clk 0:01:17.2]} 29... Ke7 {[%clk 0:00:19.7]} 30. Bg5+ {[%clk 0:01:14.4]}
30... Bf6 {[%clk 0:00:20.5]} 31. R8d7+ {[%clk 0:01:02.8]} 31... Bxd7 {[%clk
0:00:21.1]} 32. Rxd7+ {[%clk 0:01:03.4]} 32... Qxd7 {[%clk 0:00:21.9]} 33. exd7
{[%clk 0:01:04.1]} 33... Bxg5 {[%clk 0:00:23.2]} 34. hxg5 {[%clk 0:01:02.3]}
34... Kxd7 {[%clk 0:00:24.9]} 35. Kf1 {[%clk 0:01:03.3]} 35... Kc6 {[%clk
0:00:25.9]} 36. Ke2 {[%clk 0:01:04.3]} 36... Kc5 {[%clk 0:00:26.7]} 37. Ke3
{[%clk 0:01:05.1]} 37... Kb4 {[%clk 0:00:28.1]} 38. Kd4 {[%clk 0:01:06.1]} 38...
a5 {[%clk 0:00:29.4]} 39. Nd2 {[%clk 0:01:04.8]} 39... a4 {[%clk 0:00:30.5]} 40.
Nxc4 {[%clk 0:01:05]} 1-0